[Event "GER-ch Youth-U10 2022"]
[Site "Willingen"]
[Date "2022.06.11"]
[Round "11.2"]
[White "Campora, Daniel H."]
[Black "Zhang, Yibo"]
[Result "0-1"]
[ECO "A46"]
[WhiteElo "2397"]
[BlackElo "1436"]
[Annotator "TA"]
[PlyCount "96"]
[EventDate "2022.06.05"]
[EventType "swiss"]
[EventRounds "11"]
[EventCountry "GER"]
[SourceTitle "playchess.com"]
[Source "ChessBase"]
[SourceQuality "1"]
[TimeControl "40/4500+30:900+30"]

{[%evp 18,96,-15,-14,-8,-15,-15,-17,-17,-4,-5,-29,0,-22,0,0,0,-10,-12,-45,-39,-37,-36,-55,-54,-80,-49,-76,-64,-88,-80,-144,-139,-120,-129,-120,-88,-95,-35,-31,-32,-30,-34,-39,-25,-94,-94,-85,-86,-108,-85,-111,-86,-96,-86,-89,-28,-39,0,-816,-816,-816,-814,-782,-746,-29966,-29966,-5408,-946,-5904,-4818,-29973,-29969,-29975,-29976,-29982,-29977,-29988,-29989,-29989,-29985]} 1. d4 {[%emt 0:00:01]} d5 {[%emt 0:00:06]} 2. e3 {[%emt 0:00:09]} Nf6 {[%emt 0:00:05]} 3. f4 {[%emt 0:00:25]} c5 {[%emt 0:00:14]} 4. c3 {[%emt 0:00:28]} Nc6 {[%emt 0:00:11]} 5. Bd3 {[%emt 0:00:18]} Qb6 {[%emt 0:00:14]} 6. Nf3 {[%emt 0:00:43]} g6 {[%emt 0:00:14]} 7. O-O {[%emt 0:00:36]} Bg7 {[%emt 0:00:06]} 8. Nbd2 {[%emt 0:00:33]} O-O {[%emt 0:00:06]} 9. Ne5 {[%emt 0:00:31]} cxd4 {[%emt 0:00:11]} 10. exd4 {[%emt 0:00:20]} Nxe5 {[%emt 0:00:12] A46: 1 d4 Nf6 2 Nf3 e6: Torre, London and Colle Systems.} 11. fxe5 {[%emt 0:00:26]} Ng4 {[%emt 0:00:09]} 12. Nf3 {[%emt 0:06:01]} Nxe5 $1 {[%emt 0:01:01] The position is equal.} 13. Nxe5 {[%emt 0:00:46]} Bxe5 {[%emt 0:00:06]} 14. Qe2 {[%emt 0:02:42]} Bf6 {[%emt 0:00:24] [#]} (14... f6 {seems wilder.} 15. Bh6 Rf7 16. Rae1 Bc7) 15. Rb1 $146 {[%emt 0:02:02]} ({Predecessor:} 15. Bh6 Rd8 16. Rae1 Be6 17. h4 Qc7 18. Bf4 Qd7 19. g3 Bh3 20. Rf2 Qg4 21. Qxg4 Bxg4 {0-1 (39) Yaman,S (1342)-Ilkbahar,N (1618) Konya 2017}) 15... a6 {[%emt 0:00:56]} 16. Bh6 {[%emt 0:01:26]} Re8 {[%emt 0:00:25]} 17. Qf3 {[%emt 0:02:03]} Be6 {[%emt 0:00:38]} 18. Kh1 {[%emt 0:02:15]} (18. Qf4 {keeps more tension.} Bg7 19. Qh4 Bh8 20. Rf3) 18... Bg7 {[%emt 0:01:22]} 19. Bf4 {[%emt 0:04:47]} Qc6 {[%emt 0:01:37]} 20. Rbe1 {[%emt 0:01:45]} b5 {[%emt 0:03:01][%cal Ob5b4]} 21. Be3 {[%emt 0:04:12]} Rf8 {[%emt 0:02:49]} 22. a3 {[%emt 0:02:34]} Rae8 {[%emt 0:00:51]} 23. Ra1 {[%emt 0:02:23]} Bd7 {[%emt 0:01:37]} 24. a4 {[%emt 0:01:27]} (24. Bc2 $142) 24... bxa4 $17 {[%emt 0:01:14]} 25. Bc2 {[%emt 0:00:16]} Qc4 {[%emt 0:00:37]} 26. Qd1 {[%emt 0:01:51]} a3 {[%emt 0:02:27]} 27. Rxa3 {[%emt 0:00:28]} Bg4 {[%emt 0:00:37]} 28. Bd3 $15 {[%emt 0:06:52]} Bxd1 {[%emt 0:00:34]} 29. Bxc4 {[%emt 0:00:17]} dxc4 {[%emt 0:00:05]} 30. Rxd1 {[%emt 0:00:04]} Rb8 {[%emt 0:00:58]} 31. Rb1 {[%emt 0:00:29]} (31. Rd2 $11 {keeps the balance.}) 31... e5 $17 {[%emt 0:04:04]} 32. dxe5 {[%emt 0:11:11]} Bxe5 {[%emt 0:00:12]} 33. Kg1 {[%emt 0:00:51]} Rb7 {[%emt 0:02:54]} 34. Bc5 {[%emt 0:01:11]} Rd8 {[%emt 0:02:21][%cal Oa6a5]} 35. Bb4 {[%emt 0:00:49]} Rd2 {[%emt 0:01:37][%cal Oe5d4] Black is more active.} 36. Rxa6 {[%emt 0:05:14]} Bd4+ {[%emt 0:02:15]} 37. Kh1 $11 {[%emt 0:00:58] [#] aiming for Ra8+.} Rxb4 {[%emt 0:02:36]} 38. cxd4 {[%emt 0:04:34][%mdl 8192]} (38. cxb4 $11 Bxb2 39. h3) 38... Rbxb2 $15 {[%emt 0:00:52][%cal Rb2b1][%mdl 4096] Endgame KRR-KRR} 39. Rc1 {[%emt 0:01:51]} c3 {[%emt 0:00:40][%cal Bc4c3,Bc3c2][%mdl 32]} 40. Raa1 {[%emt 0:00:38]} c2 {[%emt 0:00:38][%cal Ob2a2] [#] ( -> ...Ra2!)} 41. g3 {[%emt 0:15:26]} Kg7 {[%emt 0:16:46]} 42. Kg1 {[%emt 0:01:39]} Rxd4 {[%emt 0:00:16]} (42... Rb4 $142 43. Re1 Rbxd4) 43. Kf1 {[%emt 0:00:13]} Rd2 {[%emt 0:00:14]} 44. h4 {[%emt 0:00:33]} Kf6 {[%emt 0:03:38] Black mates.} 45. Ke1 {[%emt 0:01:35]} Rh2 {[%emt 0:00:17]} 46. g4 {[%emt 0:00:32]} Ke5 {[%emt 0:01:04]} 47. Ra4 {[%emt 0:01:03]} Rb1 {[%emt 0:00:12][%cal Rb1c1]} 48. Ra1 {[%emt 0:00:14]} Rxa1 {[%emt 0:00:04] Weighted Error Value: White=0.82/Black=0.32} 0-1

[Event "GER-ch Youth-U10 2022"]
[Site "Willingen"]
[Date "2022.06.11"]
[Round "11.3"]
[White "Peglau, Paul David"]
[Black "Rodriguez Klasen, Ennio"]
[Result "1-0"]
[ECO "B03"]
[WhiteElo "1623"]
[BlackElo "1315"]
[Annotator "NA RC COMBH"]
[PlyCount "115"]
[EventDate "2022.06.05"]
[EventType "swiss"]
[EventRounds "11"]
[EventCountry "GER"]
[SourceTitle "playchess.com"]
[Source "ChessBase"]
[SourceQuality "1"]
[TimeControl "40/4500+30:900+30"]

1. e4 {[%emt 0:00:05]} Nf6 {[%emt 0:00:19]} 2. e5 {[%emt 0:00:05]} Nd5 {[%emt 0:00:05]} 3. c4 {[%emt 0:00:04]} Nb6 {[%emt 0:00:07]} 4. d4 {[%emt 0:00:08]} d6 {[%emt 0:00:07]} 5. f4 {[%emt 0:00:06]} dxe5 {[%emt 0:00:36]} 6. fxe5 {[%emt 0:00:01]} Nc6 {[%emt 0:00:15]} 7. Be3 {[%emt 0:00:17]} g6 {[%emt 0:00:57]} 8. Nc3 {[%emt 0:00:19]} Bg7 {[%emt 0:00:21]} 9. Nf3 {[%emt 0:01:47]} Bg4 {[%emt 0:01:47]} 10. Qd2 {[%emt 0:03:05]} Qd7 {[%emt 0:07:36]} 11. h3 {[%emt 0:05:28]} Bxf3 {[%emt 0:02:21]} 12. gxf3 {[%emt 0:00:20]} O-O-O {[%emt 0:02:22]} 13. O-O-O {[%emt 0:00:37]} e6 {[%emt 0:24:25]} 14. f4 {[%emt 0:06:30]} Ne7 {[%emt 0:03:08]} 15. Ne4 {[%emt 0:07:33]} Qc6 {[%emt 0:03:04]} 16. Qc2 {[%emt 0:20:24]} Nf5 {[%emt 0:00:53]} 17. Bf2 {[%emt 0:06:16]} Bh6 {[%emt 0:01:19]} 18. b3 {[%emt 0:06:15]} Bxf4+ {[%emt 0:00:51]} 19. Kb1 {[%emt 0:00:45]} Be3 {[%emt 0:02:19]} 20. Bg2 {[%emt 0:02:32]} Kb8 {[%emt 0:07:39]} 21. Qe2 {[%emt 0:07:02]} Bxd4 {[%emt 0:08:49]} 22. Bxd4 {[%emt 0:01:28]} Nxd4 {[%emt 0:03:35]} 23. Qf2 {[%emt 0:01:34]} Nf5 {[%emt 0:02:57]} 24. Nf6 {[%emt 0:01:50]} Nd5 {[%emt 0:04:27]} 25. cxd5 {[%emt 0:00:30]} Qc3 {[%emt 0:01:29]} 26. dxe6 {[%emt 0:01:44]} fxe6 {[%emt 0:00:36]} 27. Qf3 {[%emt 0:02:42]} Qxf3 {[%emt 0:01:24]} 28. Bxf3 {[%emt 0:00:01]} Nd4 {[%emt 0:00:53]} 29. Bg2 {[%emt 0:01:33]} Ne2 {[%emt 0:02:11]} 30. Kb2 {[%emt 0:01:47]} Nf4 {[%emt 0:00:38]} 31. Be4 {[%emt 0:01:06]} h6 {[%emt 0:01:58]} 32. Nd7+ {[%emt 0:00:48]} Kc8 {[%emt 0:00:23]} 33. Nc5 {[%emt 0:00:26]} c6 {[%emt 0:00:16]} 34. Nd3 {[%emt 0:02:02]} g5 {[%emt 0:01:20]} 35. Nxf4 {[%emt 0:01:12]} gxf4 {[%emt 0:00:09]} 36. Rxd8+ {[%emt 0:01:01]} Kxd8 {[%emt 0:00:47]} 37. Rf1 {[%emt 0:00:38]} Rf8 {[%emt 0:00:28]} 38. Kc2 {[%emt 0:00:27]} Kc7 {[%emt 0:00:35]} 39. Kd2 {[%emt 0:01:22]} Kb6 {[%emt 0:00:10]} 40. Ke2 {[%emt 0:00:29]} Kc5 {[%emt 0:00:16]} 41. Rd1 {[%emt 0:16:50]} f3+ {[%emt 0:16:03]} 42. Kf2 {[%emt 0:01:20]} Rf4 {[%emt 0:00:00]} 43. Bxf3 {[%emt 0:00:00]} Rf5 {[%emt 0:00:00]} 44. Rd7 {[%emt 0:00:00]} Rxe5 {[%emt 0:00:00]} 45. Rxb7 {[%emt 0:00:00]} Rf5 {[%emt 0:00:00]} 46. Rxa7 {[%emt 0:00:00]} e5 {[%emt 0:00:00]} 47. Ke3 {[%emt 0:00:00]} Kb6 {[%emt 0:00:00]} 48. Rh7 {[%emt 0:00:00]} Rf6 {[%emt 0:00:00]} 49. Re7 {[%emt 0:00:00]} Rf5 {[%emt 0:00:00]} 50. Re6 {[%emt 0:00:00]} Kb7 {[%emt 0:00:00]} 51. Rxc6 {[%emt 0:00:00]} Rxf3+ {[%emt 0:00:00]} 52. Kxf3 {[%emt 0:00:00]} Kxc6 {[%emt 0:00:00]} 53. Ke4 {[%emt 0:00:00]} Kd6 {[%emt 0:00:00]} 54. a4 {[%emt 0:00:00]} Ke6 {[%emt 0:00:00]} 55. a5 {[%emt 0:00:00]} Kd6 {[%emt 0:00:00]} 56. b4 {[%emt 0:00:00]} h5 {[%emt 0:00:00]} 57. b5 {[%emt 0:00:00]} Kc5 {[%emt 0:00:00]} 58. a6 {[%emt 0:00:00]} 1-0

[Event "GER-ch Youth-U10 2022"]
[Site "Willingen"]
[Date "2022.06.11"]
[Round "11.4"]
[White "Shen, Tingrui"]
[Black "Stehning, Toni"]
[Result "1-0"]
[ECO "C54"]
[WhiteElo "1621"]
[BlackElo "1097"]
[Annotator "NA RC COMBH"]
[PlyCount "57"]
[EventDate "2022.06.05"]
[EventType "swiss"]
[EventRounds "11"]
[EventCountry "GER"]
[SourceTitle "playchess.com"]
[Source "ChessBase"]
[SourceQuality "1"]
[TimeControl "40/4500+30:900+30"]

1. e4 {[%emt 0:00:11]} e5 {[%emt 0:00:12]} 2. Nf3 {[%emt 0:00:27]} Nc6 {[%emt 0:00:22]} 3. Bc4 {[%emt 0:00:14]} Nf6 {[%emt 0:00:04]} 4. d4 {[%emt 0:00:27]} exd4 {[%emt 0:00:16]} 5. e5 {[%emt 0:00:14]} d5 {[%emt 0:00:24]} 6. Bb5 {[%emt 0:01:16]} Ne4 {[%emt 0:00:29]} 7. Nxd4 {[%emt 0:01:10]} Bc5 {[%emt 0:01:21]} 8. c3 {[%emt 0:15:36]} O-O {[%emt 0:03:06]} 9. Bxc6 {[%emt 0:10:02]} bxc6 {[%emt 0:00:21]} 10. O-O {[%emt 0:02:48]} Qh4 {[%emt 0:04:04]} 11. f3 {[%emt 0:10:47]} Ng5 {[%emt 0:02:05]} 12. f4 {[%emt 0:13:22]} Ne4 {[%emt 0:01:39]} 13. Nd2 {[%emt 0:08:07]} Ba6 {[%emt 0:02:45]} 14. Rf3 {[%emt 0:07:20]} Rad8 {[%emt 0:02:11]} 15. Nxe4 {[%emt 0:07:45]} dxe4 {[%emt 0:00:23]} 16. Rg3 {[%emt 0:01:41]} Bb6 {[%emt 0:03:59]} 17. Qe1 {[%emt 0:00:33]} f6 {[%emt 0:01:59]} 18. Rxg7+ {[%emt 0:00:22]} Kxg7 {[%emt 0:00:31]} 19. Qxh4 {[%emt 0:00:19]} fxe5 {[%emt 0:00:14]} 20. Qg5+ {[%emt 0:00:31]} Kh8 {[%emt 0:00:36]} 21. Qxe5+ {[%emt 0:00:10]} Kg8 {[%emt 0:00:07]} 22. Be3 {[%emt 0:00:15]} Rd5 {[%emt 0:00:39]} 23. Qe6+ {[%emt 0:00:24]} Kh8 {[%emt 0:00:43]} 24. f5 {[%emt 0:00:47]} Bc8 {[%emt 0:00:59]} 25. Qxc6 {[%emt 0:00:47]} Ra5 {[%emt 0:00:39]} 26. Bh6 {[%emt 0:00:22]} Rc5 {[%emt 0:01:12]} 27. Qxe4 {[%emt 0:00:48]} Bxf5 {[%emt 0:00:50]} 28. Qh4 {[%emt 0:00:25]} Be6 {[%emt 0:03:19]} 29. Bxf8 {[%emt 0:00:09]} 1-0

[Event "GER-ch Youth-U10 2022"]
[Site "Willingen"]
[Date "2022.06.11"]
[Round "11.5"]
[White "Gersemann, Karl"]
[Black "Vartanian, Roman"]
[Result "0-1"]
[ECO "B90"]
[WhiteElo "1620"]
[BlackElo "1511"]
[Annotator "NA RC COMBH"]
[PlyCount "104"]
[EventDate "2022.06.05"]
[EventType "swiss"]
[EventRounds "11"]
[EventCountry "GER"]
[SourceTitle "playchess.com"]
[Source "ChessBase"]
[SourceQuality "1"]
[TimeControl "40/4500+30:900+30"]

1. e4 {[%emt 0:00:03]} c5 {[%emt 0:00:06]} 2. Nf3 {[%emt 0:00:06]} d6 {[%emt 0:00:06]} 3. d4 {[%emt 0:00:12]} cxd4 {[%emt 0:00:05]} 4. Nxd4 {[%emt 0:00:08]} Nf6 {[%emt 0:00:09]} 5. Nc3 {[%emt 0:00:07]} a6 {[%emt 0:00:23]} 6. h3 {[%emt 0:00:26]} Qc7 {[%emt 0:00:18]} 7. Be3 {[%emt 0:00:20]} Nbd7 {[%emt 0:00:41]} 8. Qd3 {[%emt 0:02:01]} e6 {[%emt 0:05:26]} 9. Nb3 {[%emt 0:00:15]} Be7 {[%emt 0:01:30]} 10. f3 {[%emt 0:02:10]} b6 {[%emt 0:00:27]} 11. O-O-O {[%emt 0:00:53]} Bb7 {[%emt 0:00:24]} 12. Qe2 {[%emt 0:00:33]} Rc8 {[%emt 0:01:06]} 13. g4 {[%emt 0:00:49]} h6 {[%emt 0:01:58]} 14. Qg2 {[%emt 0:03:02]} d5 {[%emt 0:05:15]} 15. exd5 {[%emt 0:03:11]} Nxd5 {[%emt 0:00:38]} 16. Nxd5 {[%emt 0:03:25]} Bxd5 {[%emt 0:00:14]} 17. Rd2 {[%emt 0:26:00]} Bb4 {[%emt 0:12:58]} 18. Rf2 {[%emt 0:03:05]} Qe5 {[%emt 0:02:53]} 19. Re2 {[%emt 0:02:45]} Bc4 {[%emt 0:05:56]} 20. f4 {[%emt 0:03:57]} Qc7 {[%emt 0:04:27]} 21. Rf2 {[%emt 0:00:36]} Bd5 {[%emt 0:00:26]} 22. Qg1 {[%emt 0:01:04]} Bxh1 {[%emt 0:00:11]} 23. Qxh1 {[%emt 0:00:12]} Bd6 {[%emt 0:05:52]} 24. Bxa6 {[%emt 0:00:24]} Rd8 {[%emt 0:01:16]} 25. f5 {[%emt 0:02:05]} e5 {[%emt 0:01:26]} 26. Bb5 {[%emt 0:00:50]} Be7 {[%emt 0:04:07]} 27. Rd2 {[%emt 0:02:51]} O-O {[%emt 0:01:02]} 28. Bxd7 {[%emt 0:00:42]} Rxd7 {[%emt 0:00:10]} 29. Rxd7 {[%emt 0:00:56]} Qxd7 {[%emt 0:00:06]} 30. Bxb6 {[%emt 0:00:48]} Bg5+ {[%emt 0:00:14]} 31. Kb1 {[%emt 0:00:11]} Bd8 {[%emt 0:01:23]} 32. Be3 {[%emt 0:03:42]} Be7 {[%emt 0:00:26]} 33. Kc1 {[%emt 0:01:21]} Rd8 {[%emt 0:01:03]} 34. Qe1 {[%emt 0:01:30]} Qd5 {[%emt 0:01:34]} 35. Qf1 {[%emt 0:03:51]} Qe4 {[%emt 0:02:07]} 36. Bd2 {[%emt 0:01:43]} Bg5 {[%emt 0:01:56]} 37. Bxg5 {[%emt 0:02:35]} hxg5 {[%emt 0:00:11]} 38. Nd2 {[%emt 0:01:57]} Qe3 {[%emt 0:00:21]} 39. Qd1 {[%emt 0:01:57]} Qxh3 {[%emt 0:01:14]} 40. Qf3 {[%emt 0:00:31]} Qh2 {[%emt 0:01:42]} 41. Qd1 {[%emt 0:16:40]} e4 {[%emt 0:16:26]} 42. Qe1 {[%emt 0:03:24]} Rxd2 {[%emt 0:10:45]} 43. Qxd2 {[%emt 0:00:16]} Qg1+ {[%emt 0:00:13]} 44. Qd1 {[%emt 0:00:15]} Qf2 {[%emt 0:00:28]} 45. b3 {[%emt 0:00:00]} e3 {[%emt 0:00:00]} 46. Qd8+ {[%emt 0:00:00]} Kh7 {[%emt 0:00:00]} 47. Qxg5 {[%emt 0:02:23]} e2 {[%emt 0:00:00]} 48. Kb2 {[%emt 0:00:00]} e1=Q {[%emt 0:00:00]} 49. Ka3 {[%emt 0:00:00]} Qc5+ {[%emt 0:00:00]} 50. Kb2 {[%emt 0:00:00]} Qec3+ {[%emt 0:00:00]} 51. Kb1 {[%emt 0:00:22]} Qg1+ {[%emt 0:00:00]} 52. Qc1 {[%emt 0:00:10]} Qa1+ {[%emt 0:00:00]} 0-1

[Event "GER-ch Youth-U10 2022"]
[Site "Willingen"]
[Date "2022.06.11"]
[Round "11.6"]
[White "Fischermann, Simon"]
[Black "Dotschuweit, Erik"]
[Result "1-0"]
[ECO "D20"]
[WhiteElo "1344"]
[BlackElo "1323"]
[Annotator "NA RC COMBH"]
[PlyCount "89"]
[EventDate "2022.06.05"]
[EventType "swiss"]
[EventRounds "11"]
[EventCountry "GER"]
[SourceTitle "playchess.com"]
[Source "ChessBase"]
[SourceQuality "1"]
[TimeControl "40/4500+30:900+30"]

1. d4 {[%emt 0:00:03]} d5 {[%emt 0:00:15]} 2. c4 {[%emt 0:00:12]} dxc4 {[%emt 0:00:20]} 3. Nc3 {[%emt 0:00:11]} Nf6 {[%emt 0:01:08]} 4. e4 {[%emt 0:01:03]} e5 {[%emt 0:00:22]} 5. d5 {[%emt 0:02:05]} c6 {[%emt 0:00:42]} 6. Bxc4 {[%emt 0:00:23]} b5 {[%emt 0:00:39]} 7. Bd3 {[%emt 0:02:26]} b4 {[%emt 0:00:40]} 8. Nce2 {[%emt 0:00:30]} cxd5 {[%emt 0:00:29]} 9. exd5 {[%emt 0:01:36]} Qxd5 {[%emt 0:00:28]} 10. f3 {[%emt 0:01:14]} Ba6 {[%emt 0:01:12]} 11. Qa4+ {[%emt 0:00:32]} Qd7 {[%emt 0:01:06]} 12. Qxd7+ {[%emt 0:00:46]} Kxd7 {[%emt 0:01:28]} 13. Bf5+ {[%emt 0:00:29]} Kd8 {[%emt 0:00:47]} 14. Bg5 {[%emt 0:00:22]} Be7 {[%emt 0:00:39]} 15. Bxf6 {[%emt 0:00:15]} Bxf6 {[%emt 0:00:54]} 16. Be4 {[%emt 0:00:35]} Nc6 {[%emt 0:00:40]} 17. Bxc6 {[%emt 0:01:04]} Rc8 {[%emt 0:00:33]} 18. Be4 {[%emt 0:02:03]} Ke7 {[%emt 0:00:35]} 19. Rc1 {[%emt 0:02:28]} Rxc1+ {[%emt 0:00:25]} 20. Nxc1 {[%emt 0:00:22]} Bg5 {[%emt 0:00:29]} 21. Nd3 {[%emt 0:02:43]} Rd8 {[%emt 0:01:36]} 22. Ke2 {[%emt 0:01:02]} g6 {[%emt 0:00:30]} 23. g4 {[%emt 0:00:30]} Ke6 {[%emt 0:00:57]} 24. Nh3 {[%emt 0:00:55]} Bh6 {[%emt 0:00:15]} 25. Rd1 {[%emt 0:01:11]} f5 {[%emt 0:02:32]} 26. Bb7 {[%emt 0:02:14]} Bc4 {[%emt 0:00:59]} 27. b3 {[%emt 0:00:32]} Bb5 {[%emt 0:00:12]} 28. g5 {[%emt 0:00:14]} Bf8 {[%emt 0:01:03]} 29. Ke3 {[%emt 0:01:08]} f4+ {[%emt 0:00:46]} 30. Nhxf4+ {[%emt 0:01:40]} exf4+ {[%emt 0:00:29]} 31. Nxf4+ {[%emt 0:00:08]} Ke7 {[%emt 0:00:42]} 32. Rxd8 {[%emt 0:01:06]} Kxd8 {[%emt 0:00:19]} 33. Ne6+ {[%emt 0:00:04]} Ke7 {[%emt 0:01:06]} 34. Nxf8 {[%emt 0:00:07]} Kxf8 {[%emt 0:00:07]} 35. Kd4 {[%emt 0:00:32]} Ke7 {[%emt 0:01:34]} 36. Kc5 {[%emt 0:00:18]} a6 {[%emt 0:00:20]} 37. Kxb4 {[%emt 0:00:13]} Ke6 {[%emt 0:00:29]} 38. Ka5 {[%emt 0:00:14]} Be2 {[%emt 0:01:22]} 39. Bxa6 {[%emt 0:00:37]} Bxf3 {[%emt 0:00:14]} 40. b4 {[%emt 0:00:14]} Kf5 {[%emt 0:00:31]} 41. Bc8+ {[%emt 0:15:11]} Kxg5 {[%emt 0:15:10]} 42. b5 {[%emt 0:00:15]} Kh4 {[%emt 0:00:22]} 43. b6 {[%emt 0:00:08]} g5 {[%emt 0:00:18]} 44. h3 {[%emt 0:00:06]} g4 {[%emt 0:00:35]} 45. Bxg4 {[%emt 0:00:13]} 1-0

[Event "GER-ch Youth-U10 2022"]
[Site "Willingen"]
[Date "2022.06.11"]
[Round "11.7"]
[White "Allen, Phillipp"]
[Black "Sheng, Ming"]
[Result "1-0"]
[ECO "A36"]
[WhiteElo "1467"]
[BlackElo "1258"]
[Annotator "NA RC COMBH"]
[PlyCount "89"]
[EventDate "2022.06.05"]
[EventType "swiss"]
[EventRounds "11"]
[EventCountry "GER"]
[SourceTitle "playchess.com"]
[Source "ChessBase"]
[SourceQuality "1"]
[TimeControl "40/4500+30:900+30"]

1. e4 {[%emt 0:00:03]} c5 {[%emt 0:00:10]} 2. c4 {[%emt 0:00:05]} Nc6 {[%emt 0:00:12]} 3. Nc3 {[%emt 0:00:09]} g6 {[%emt 0:00:07]} 4. d3 {[%emt 0:00:07]} Bg7 {[%emt 0:00:07]} 5. Nge2 {[%emt 0:00:08]} e6 {[%emt 0:00:11]} 6. g3 {[%emt 0:00:06]} Nge7 {[%emt 0:00:07]} 7. Bg2 {[%emt 0:00:05]} d6 {[%emt 0:00:19]} 8. O-O {[%emt 0:00:09]} O-O {[%emt 0:00:09]} 9. f4 {[%emt 0:00:06]} Nd4 {[%emt 0:00:27]} 10. g4 {[%emt 0:00:28]} f5 {[%emt 0:00:34]} 11. g5 {[%emt 0:00:41]} Nec6 {[%emt 0:00:18]} 12. Ng3 {[%emt 0:00:18]} Rb8 {[%emt 0:01:41]} 13. a4 {[%emt 0:01:11]} Bd7 {[%emt 0:01:04]} 14. h4 {[%emt 0:00:57]} a6 {[%emt 0:01:19]} 15. h5 {[%emt 0:00:45]} b5 {[%emt 0:00:32]} 16. hxg6 {[%emt 0:00:42]} hxg6 {[%emt 0:01:39]} 17. exf5 {[%emt 0:00:16]} exf5 {[%emt 0:00:38]} 18. Bd5+ {[%emt 0:00:16]} Be6 {[%emt 0:02:34]} 19. Bxe6+ {[%emt 0:00:10]} Nxe6 {[%emt 0:00:10]} 20. axb5 {[%emt 0:00:28]} axb5 {[%emt 0:00:13]} 21. Nxb5 {[%emt 0:00:28]} Ned4 {[%emt 0:00:37]} 22. Nc3 {[%emt 0:00:29]} Nb3 {[%emt 0:01:06]} 23. Ra3 {[%emt 0:00:29]} Nxc1 {[%emt 0:00:12]} 24. Qxc1 {[%emt 0:00:17]} Qb6 {[%emt 0:00:54]} 25. Nd5 {[%emt 0:09:27]} Bxb2 {[%emt 0:08:14]} 26. Nxb6 {[%emt 0:01:38]} Bxc1 {[%emt 0:01:21]} 27. Rxc1 {[%emt 0:00:02]} Rxb6 {[%emt 0:00:02]} 28. Ne2 {[%emt 0:00:02]} Rfb8 {[%emt 0:01:04]} 29. Rca1 {[%emt 0:03:53]} Rb1+ {[%emt 0:00:46]} 30. Rxb1 {[%emt 0:05:16]} Rxb1+ {[%emt 0:00:17]} 31. Kf2 {[%emt 0:00:27]} Rb2 {[%emt 0:00:33]} 32. Ke1 {[%emt 0:03:36]} Rb1+ {[%emt 0:00:53]} 33. Kd2 {[%emt 0:00:19]} Rb2+ {[%emt 0:00:04]} 34. Kd1 {[%emt 0:00:09]} Rb6 {[%emt 0:01:56]} 35. Ra8+ {[%emt 0:00:56]} Kf7 {[%emt 0:00:47]} 36. Nc3 {[%emt 0:00:40]} Ne7 {[%emt 0:02:35]} 37. Ra7 {[%emt 0:00:21]} Ke8 {[%emt 0:01:37]} 38. Rxe7+ {[%emt 0:00:07]} Kxe7 {[%emt 0:02:44]} 39. Nd5+ {[%emt 0:00:06]} Ke6 {[%emt 0:00:17]} 40. Nxb6 {[%emt 0:00:03]} Ke7 {[%emt 0:00:14]} 41. Nd5+ {[%emt 0:15:12]} Ke6 {[%emt 0:15:02]} 42. Kc2 {[%emt 0:00:08]} Kd7 {[%emt 0:00:04]} 43. Kb3 {[%emt 0:00:07]} Ke6 {[%emt 0:00:05]} 44. Ka4 {[%emt 0:00:03]} Kd7 {[%emt 0:00:11]} 45. Kb5 {[%emt 0:00:05]} 1-0